fUSD/lending_fUSD_20250515
["ID","MTS","AMOUNT","RATE_DAILY","PERIOD"]
[361113202,1747267575340,450.0,0.0001,2]
[361113203,1747267674510,150.0,0.00010281,7]
[361113204,1747267744293,150.0,9.796e-05,2]
[361113205,1747267773428,671.82,8.283e-05,2]
[361113218,1747267832258,-150.0,0.00010085,2]
[361113219,1747267832268,-111.51198,0.0001028,2]
[361113221,1747267832370,-617.9860446,0.0001028,2]
[361113227,1747267832730,-470.5019754,0.0001028,2]
[361113229,1747267832739,-300.0,0.0001028,2]
[361113231,1747267832749,-12142.6094909,0.00010281,2]
[361113232,1747267832760,-2687.71789706,0.00010281,2]
[361113236,1747267832817,-600.88592764,0.00010281,2]
[361113237,1747267832829,-1918.30814677,0.00010281,2]
[361113238,1747267832840,-2580.06824356,0.00010281,2]
[361113239,1747267832852,-2393.82266055,0.00010281,2]
[361113240,1747267832863,-1448.9243773,0.00010281,2]
[361113244,1747267838270,-127.66325622,0.00010281,2]
[361113245,1747267838281,-150.0,0.00010288,2]
[361113246,1747267838291,-877.77,0.00010415,2]
[361113247,1747267838301,-138.94174378,0.00010445,2]
[361113248,1747267838315,-11.05825622,0.00010445,2]
[361113249,1747267838324,-631.96,0.0001046,2]
[361113250,1747267838334,-671.82,0.00010547,2]
[361113251,1747267838344,-150.0,0.00010551,2]
[361113252,1747267838354,-200.0,0.00010596,2]
[361113253,1747267838364,-150.0,0.00010604,2]
[361113254,1747267838374,-164.92,0.00010618,2]
[361113255,1747267838384,-1000.0,0.00010619,2]
[361113256,1747267838394,-150.0,0.00010648,2]
[361113257,1747267838404,-150.0,0.00010685,2]
[361113258,1747267838414,-150.0,0.00010693,2]
[361113259,1747267838423,-200.0,0.00010726,2]
[361113260,1747267838434,-150.0,0.00010733,2]
[361113261,1747267838443,-150.0,0.00010905,2]
[361113262,1747267838453,-54.18397324,0.00010964,2]
[361113263,1747267838466,-95.81602676,0.00010964,2]
[361113264,1747267838476,-150.18,0.00011,2]
[361113265,1747267838485,-150.0,0.00011056,2]
[361113266,1747267838495,-150.0,0.00011098,2]
[361113267,1747267838506,-150.0,0.00011112,2]
[361113268,1747267838515,-150.0,0.0001112,2]
[361113269,1747267838525,-150.0,0.00011162,2]
[361113270,1747267838535,-150.0,0.00011202,2]
[361113271,1747267838545,-3481.52166269,0.00011233,2]
[361113272,1747267838557,-518.47833731,0.00011233,2]
[361113273,1747267838567,-420.0,0.00011305,2]
[361113274,1747267838577,-86.70166269,0.0001132,2]
[361113275,1747267838608,-63.29833731,0.0001132,2]
[361113276,1747267838617,-150.0,0.00011327,2]
[361113277,1747267838627,-151.0,0.00011439,2]
[361113278,1747267838636,-67.00760539,0.00011439,2]
[361113279,1747267838648,-140.39239461,0.00011439,2]
[361113280,1747267838657,-183.1770065,0.00011445,2]
[361113281,1747267838668,-816.8229935,0.00011445,2]
[361113282,1747267838679,-400.0,0.00011446,2]
[361113283,1747267838688,-58.92700864,0.00011446,2]
[361113284,1747267838699,-341.07299136,0.00011446,2]
[361113286,1747267838709,-557.04,0.00011446,2]
[361113288,1747267838718,-400.0,0.00011446,2]
[361113290,1747267838728,-400.0,0.00011446,2]
[361113292,1747267838738,-400.0,0.00011446,2]
[361113294,1747267838747,-330.506561,0.00011446,2]
[361113296,1747267838758,-69.493439,0.00011446,2]
[361113298,1747267838767,-400.0,0.00011446,2]
[361113300,1747267838776,-302.94890211,0.00011446,2]
[361113456,1747267840448,-150.0,0.00010271,2]
[361113458,1747267840458,-150.0,0.00011149,2]
[361113460,1747267840467,-150.0,0.00011344,2]
[361113462,1747267840478,-864.05076374,0.00011415,2]
[361113464,1747267840487,-97.05109789,0.00011446,2]
[361113466,1747267840497,-400.0,0.00011446,2]
[361113468,1747267840507,-400.0,0.00011446,2]
[361113470,1747267840516,-492.6,0.00011446,2]
[361113472,1747267840526,-400.0,0.00011446,2]
[361113474,1747267840536,-400.0,0.00011446,2]
[361113476,1747267840545,-589.97,0.00011446,2]
[361113478,1747267840555,-400.0,0.00011446,2]
[361113479,1747267840567,-400.0,0.00011446,2]
[361113482,1747267840576,-400.0,0.00011446,2]
[361113484,1747267840586,-400.0,0.00011446,2]
[361113485,1747267840596,-400.0,0.00011446,2]
[361113487,1747267840605,-400.0,0.00011446,2]
[361113489,1747267840615,-400.0,0.00011446,2]
[361113491,1747267840625,-400.0,0.00011446,2]
[361113493,1747267840634,-683.42,0.00011446,2]
[361113495,1747267840643,-400.0,0.00011446,2]
[361113497,1747267840653,-246.58739328,0.00011446,2]
[361113499,1747267840663,-400.0,0.00011446,2]
[361113501,1747267840672,-400.0,0.00011446,2]
[361113503,1747267840682,-400.0,0.00011446,2]
[361113505,1747267840691,-400.0,0.00011446,2]
[361113507,1747267840701,-492.21,0.00011446,2]
[361113509,1747267840710,-400.0,0.00011446,2]
[361113511,1747267840720,-400.0,0.00011446,2]
[361113513,1747267840729,-400.0,0.00011446,2]
[361113515,1747267840739,-731.41,0.00011446,2]
[361113517,1747267840748,-400.0,0.00011446,2]
[361113519,1747267840757,-400.0,0.00011446,2]
[361113521,1747267840767,-440.97,0.00011446,2]
[361113522,1747267840776,-400.0,0.00011446,2]
[361113524,1747267840786,-418.07,0.00011446,2]
[361113526,1747267840796,-400.0,0.00011446,2]
[361113528,1747267840806,-400.0,0.00011446,2]
[361113530,1747267840816,-572.24,0.00011446,2]
[361113532,1747267840826,-400.0,0.00011446,2]
[361113534,1747267840836,-400.0,0.00011446,2]
[361113537,1747267840846,-432.44529739,0.00011446,2]
[361113539,1747267840856,-135.42346431,0.00011446,2]
[361113544,1747267840901,-383.74653569,0.00011446,2]
[361113546,1747267840911,-400.0,0.00011446,2]
[361113548,1747267840919,-400.0,0.00011446,2]
[361113550,1747267840929,-400.0,0.00011446,2]
[361113552,1747267840938,-400.0,0.00011446,2]
[361113554,1747267840947,-131.58529206,0.00011446,2]
[361113556,1747267840959,-268.41470794,0.00011446,2]
[361113558,1747267840969,-400.0,0.00011446,2]
[361113560,1747267840978,-400.0,0.00011446,2]
[361113562,1747267840988,-400.0,0.00011446,2]
[361113564,1747267840997,-400.0,0.00011446,2]
[361113566,1747267841007,-660.43,0.00011446,2]
[361113567,1747267841017,-400.0,0.00011446,2]
[361113568,1747267841027,-400.0,0.00011446,2]
[361113569,1747267841036,-412.15710667,0.00011446,2]
[361113570,1747267841046,-336.1981854,0.00011446,2]
[361113572,1747267841086,-63.8018146,0.00011446,2]
[361113574,1747267841095,-400.0,0.00011446,2]
[361113576,1747267841105,-400.0,0.00011446,2]
[361113579,1747267841114,-400.0,0.00011446,2]
[361113580,1747267841123,-400.0,0.00011446,2]
[361113582,1747267841134,-400.0,0.00011446,2]
[361113583,1747267841143,-400.0,0.00011446,2]
[361113584,1747267841379,-400.0,0.00011446,2]
[361113585,1747267841390,-400.0,0.00011446,2]
[361113586,1747267841400,-400.0,0.00011446,2]
[361113587,1747267841409,-483.16,0.00011446,2]
[361113588,1747267841419,-693.96,0.00011446,2]
[361113589,1747267841429,-1462.12,0.00011446,2]
[361113590,1747267841438,-400.0,0.00011446,2]
[361113591,1747267841448,-487.92,0.00011446,2]
[361113592,1747267841458,-400.0,0.00011446,2]
[361113593,1747267841468,-637.86,0.00011446,2]
[361113594,1747267841477,-465.94,0.00011446,2]
[361113595,1747267841487,-633.19,0.00011446,2]
[361113596,1747267841497,-400.0,0.00011446,2]
[361113597,1747267841507,-400.0,0.00011446,2]
[361113598,1747267841516,-470.82,0.00011446,2]
[361113599,1747267841526,-525.9,0.00011446,2]
[361113600,1747267841536,-436.4,0.00011446,2]
[361113601,1747267841546,-400.0,0.00011446,2]
[361113602,1747267841556,-400.0,0.00011446,2]
[361113603,1747267841567,-466.9,0.00011446,2]
[361113604,1747267841576,-1090.44,0.00011446,2]
[361113605,1747267841586,-922.84,0.00011446,2]
[361113606,1747267841596,-400.0,0.00011446,2]
[361113607,1747267841606,-400.0,0.00011446,2]
[361113608,1747267841616,-400.0,0.00011446,2]
[361113609,1747267841625,-400.0,0.00011446,2]
[361113610,1747267841635,-562.6,0.00011446,2]
[361113611,1747267841645,-400.0,0.00011446,2]
[361113612,1747267841654,-400.0,0.00011446,2]
[361113613,1747267841664,-505.91,0.00011446,2]
[361113614,1747267841673,-527.99,0.00011446,2]
[361113615,1747267841682,-1164.34,0.00011446,2]
[361113616,1747267841692,-565.54,0.00011446,2]
[361113617,1747267841702,-400.0,0.00011446,2]
[361113618,1747267841711,-1683.54,0.00011446,2]
[361113619,1747267841720,-400.0,0.00011446,2]
[361113620,1747267841730,-400.0,0.00011446,2]
[361113621,1747267841739,-1123.96,0.00011446,2]
[361113622,1747267841749,-545.75,0.00011446,2]
[361113623,1747267841758,-400.0,0.00011446,2]
[361113624,1747267841768,-400.0,0.00011446,2]
[361113625,1747267841777,-400.0,0.00011446,2]
[361113626,1747267841787,-400.0,0.00011446,2]
[361113627,1747267841797,-400.0,0.00011446,2]
[361113628,1747267841806,-741.04,0.00011446,2]
[361113629,1747267841816,-423.12,0.00011446,2]
[361113630,1747267841827,-599.02,0.00011446,2]
[361113631,1747267841839,-400.0,0.00011446,2]
[361113632,1747267841849,-400.0,0.00011446,2]
[361113633,1747267841858,-400.0,0.00011446,2]
[361113634,1747267841868,-643.19,0.00011446,2]
[361113635,1747267841878,-400.0,0.00011446,2]
[361113636,1747267841889,-400.0,0.00011446,2]
[361113637,1747267841900,-150.18,0.00011529,2]
[361113638,1747267841910,-150.18,0.00011529,2]
[361113639,1747267841920,-150.18,0.00011529,2]
[361113640,1747267841930,-150.18,0.00011529,2]
[361113641,1747267841939,-150.18,0.00011529,2]
[361113642,1747267841949,-302.13,0.00011529,2]
[361113643,1747267841959,-200.0,0.0001153,2]
[361113644,1747267841968,-910.03,0.00011534,2]
[361113645,1747267841978,-452.72,0.00011534,2]
[361113646,1747267841987,-452.72,0.00011534,2]
[361113647,1747267841997,-902.36,0.00011534,2]
[361113648,1747267842007,-352.94,0.00011534,2]
[361113649,1747267842016,-352.94,0.00011534,2]
[361113650,1747267842025,-352.94,0.00011534,2]
[361113651,1747267842035,-150.0,0.00011541,2]
[361113652,1747267842045,-452.54,0.00011589,2]
[361113653,1747267842055,-6822.0,0.00011608,2]
[361113654,1747267842071,-4032.0,0.00011608,2]
[361113655,1747267842080,-154.0,0.00011608,2]
[361113656,1747267842090,-836.0,0.00011608,2]
[361113657,1747267842099,-879.0,0.00011608,2]
[361113658,1747267842109,-330.6171,0.00011619,2]
[361113659,1747267842118,-400.0,0.00011619,2]
[361113660,1747267842127,-471.34,0.00011619,2]
[361113661,1747267842136,-400.0,0.00011619,2]
[361113662,1747267842145,-400.0,0.00011619,2]
[361113663,1747267842155,-546.23,0.00011619,2]
[361113664,1747267842165,-491.85,0.00011619,2]
[361113665,1747267842174,-400.0,0.00011619,2]
[361113666,1747267842184,-400.0,0.00011619,2]
[361113667,1747267842194,-401.79,0.00011619,2]
[361113668,1747267842205,-701.82,0.00011619,2]
[361113669,1747267842214,-400.0,0.00011619,2]
[361113670,1747267842224,-400.0,0.00011619,2]
[361113671,1747267842233,-520.79,0.00011619,2]
[361113672,1747267842243,-400.0,0.00011619,2]
[361113673,1747267842253,-400.0,0.00011619,2]
[361113674,1747267842262,-400.0,0.00011619,2]
[361113675,1747267842272,-3726.25,0.00011619,2]
[361113676,1747267842281,-400.0,0.00011619,2]
[361113677,1747267842291,-400.0,0.00011619,2]
[361113678,1747267842300,-583.88,0.00011619,2]
[361113679,1747267842311,-400.0,0.00011619,2]
[361113680,1747267842320,-615.64,0.00011619,2]
[361113681,1747267842330,-400.0,0.00011619,2]
[361113682,1747267842339,-420.2,0.00011619,2]
[361113683,1747267842349,-400.0,0.0001162,2]
[361113684,1747267842358,-400.0,0.0001162,2]
[361113685,1747267842368,-400.0,0.0001162,2]
[361113686,1747267842378,-400.0,0.0001162,2]
[361113687,1747267842388,-400.0,0.0001162,2]
[361113688,1747267842398,-400.0,0.0001162,2]
[361113689,1747267842407,-400.0,0.0001162,2]
[361113690,1747267842416,-500.0,0.0001162,2]
[361113691,1747267842426,-400.0,0.0001162,2]
[361113692,1747267842435,-400.0,0.0001162,2]
[361113693,1747267842446,-639.95,0.0001162,2]
[361113694,1747267842456,-400.0,0.0001162,2]
[361113695,1747267842465,-400.0,0.0001162,2]
[361113696,1747267842475,-578.22,0.0001162,2]
[361113697,1747267842485,-400.0,0.0001162,2]
[361113698,1747267842494,-400.0,0.0001162,2]
[361113699,1747267842505,-400.0,0.0001162,2]
[361113700,1747267842515,-400.0,0.0001162,2]
[361113701,1747267842525,-400.0,0.0001162,2]
[361113702,1747267842535,-400.0,0.0001162,2]
[361113703,1747267842546,-559.6,0.0001162,2]
[361113704,1747267842556,-400.0,0.0001162,2]
[361113705,1747267842565,-400.0,0.0001162,2]
[361113706,1747267842574,-400.0,0.0001162,2]
[361113707,1747267842584,-539.17,0.0001162,2]
[361113708,1747267842593,-400.0,0.0001162,2]
[361113709,1747267842603,-400.0,0.0001162,2]
[361113710,1747267842612,-400.0,0.0001162,2]
[361113711,1747267842622,-437.84,0.0001162,2]
[361113712,1747267842631,-400.0,0.0001162,2]
[361113713,1747267842641,-439.94,0.0001162,2]
[361113714,1747267842650,-400.0,0.0001162,2]
[361113715,1747267842660,-400.0,0.0001162,2]
[361113716,1747267842670,-411.62,0.0001162,2]
[361113717,1747267842679,-435.93482879,0.0001162,2]
[361113718,1747267842688,-400.0,0.0001162,2]
[361113719,1747267842698,-623.81,0.0001162,2]
[361113720,1747267842708,-400.0,0.0001162,2]
[361113721,1747267842717,-501.73368094,0.0001162,2]
[361113722,1747267842727,-400.0,0.0001162,2]
[361113723,1747267842736,-400.0,0.0001162,2]
[361113724,1747267842745,-400.0,0.0001162,2]
[361113725,1747267842755,-400.0,0.0001162,2]
[361113726,1747267842764,-400.0,0.0001162,2]
[361113727,1747267842774,-400.0,0.0001162,2]
[361113728,1747267842783,-400.0,0.0001162,2]
[361113729,1747267842793,-1128.66,0.0001162,2]
[361113730,1747267842802,-160.5798992,0.0001162,2]
[361113731,1747267842813,-400.0,0.0001162,2]
[361113732,1747267842822,-400.0,0.0001162,2]
[361113733,1747267842832,-400.0,0.0001162,2]
[361113734,1747267842841,-400.0,0.0001162,2]
[361113735,1747267842851,-400.0,0.0001162,2]
[361113736,1747267842860,-400.0,0.0001162,2]
[361113737,1747267842870,-400.0,0.0001162,2]
[361113738,1747267842879,-400.0,0.0001162,2]
[361113739,1747267842893,-418.65,0.0001162,2]
[361113740,1747267842903,-411.04,0.0001162,2]
[361113741,1747267842912,-400.0,0.0001162,2]
[361113742,1747267842922,-400.0,0.0001162,2]
[361113743,1747267842931,-302.86993152,0.0001162,2]
[361113744,1747267842941,-400.0,0.0001162,2]
[361113745,1747267842950,-310.87479415,0.0001162,2]
[361113746,1747267842960,-400.0,0.0001162,2]
[361113747,1747267842970,-400.0,0.0001162,2]
[361113748,1747267842980,-400.0,0.0001162,2]
[361113749,1747267842990,-400.0,0.0001162,2]
[361113750,1747267842999,-400.0,0.0001162,2]
[361113751,1747267843009,-400.0,0.0001162,2]
[361113752,1747267843019,-400.0,0.0001162,2]
[361113753,1747267843030,-400.0,0.0001162,2]
[361113754,1747267843039,-400.0,0.0001162,2]
[361113755,1747267843049,-400.0,0.0001162,2]
[361113756,1747267843059,-400.0,0.0001162,2]
[361113757,1747267843070,-400.0,0.0001162,2]
[361113758,1747267843080,-400.0,0.0001162,2]
[361113759,1747267843089,-400.0,0.0001162,2]
[361113760,1747267843098,-400.0,0.0001162,2]
[361113761,1747267843108,-400.0,0.0001162,2]
[361113762,1747267843118,-400.0,0.0001162,2]
[361113763,1747267843127,-400.0,0.0001162,2]
[361113764,1747267843137,-400.0,0.0001162,2]
[361113765,1747267843147,-400.0,0.0001162,2]
[361113766,1747267843157,-400.0,0.0001162,2]
[361113767,1747267843167,-400.0,0.0001162,2]
[361113768,1747267843176,-400.0,0.0001162,2]
[361113769,1747267843186,-489.80778683,0.0001162,2]
[361113770,1747267843196,-400.0,0.0001162,2]
[361113771,1747267843206,-400.0,0.0001162,2]
[361113772,1747267843216,-464.33,0.0001162,2]
[361113773,1747267843226,-400.0,0.0001162,2]
[361113774,1747267843235,-400.0,0.0001162,2]
[361113775,1747267843246,-400.0,0.0001162,2]
[361113776,1747267843255,-400.0,0.0001162,2]
[361113777,1747267843265,-400.0,0.0001162,2]
[361113778,1747267843275,-400.0,0.0001162,2]
[361113779,1747267843284,-400.0,0.0001162,2]
[361113780,1747267843294,-164.86799217,0.0001162,2]
[361113781,1747267843304,-400.0,0.0001162,2]
[361113782,1747267843314,-400.0,0.0001162,2]
[361113783,1747267843323,-400.0,0.0001162,2]
[361113784,1747267843332,-400.0,0.0001162,2]
[361113785,1747267843342,-400.0,0.0001162,2]
[361113786,1747267843352,-400.0,0.0001162,2]
[361113787,1747267843362,-400.0,0.0001162,2]
[361113788,1747267843372,-400.0,0.0001162,2]
[361113789,1747267843382,-400.0,0.0001162,2]
[361113790,1747267843392,-400.0,0.0001162,2]
[361113791,1747267843402,-400.0,0.0001162,2]
[361113792,1747267843411,-400.0,0.0001162,2]
[361113793,1747267843421,-400.0,0.0001162,2]
[361113794,1747267843431,-400.0,0.0001162,2]
[361113795,1747267843441,-400.0,0.0001162,2]
[361113796,1747267843451,-400.0,0.0001162,2]
[361113797,1747267843460,-174.54192411,0.0001162,2]
[361113798,1747267843471,-400.0,0.0001162,2]
[361113799,1747267843482,-1000.0,0.0001162,2]
[361113800,1747267843492,-400.0,0.0001162,2]
[361113801,1747267843502,-400.0,0.0001162,2]
[361113802,1747267843512,-400.0,0.0001162,2]
[361113803,1747267843522,-400.0,0.0001162,2]
[361113804,1747267843532,-400.0,0.0001162,2]
[361113805,1747267843542,-400.0,0.0001162,2]
[361113806,1747267843552,-400.0,0.0001162,2]
[361113807,1747267843562,-400.0,0.0001162,2]
[361113808,1747267843571,-400.0,0.0001162,2]
[361113809,1747267843580,-400.0,0.0001162,2]
[361113810,1747267843590,-266.22588349,0.0001162,2]
[361113811,1747267843600,-400.0,0.0001162,2]
[361113812,1747267843610,-400.0,0.0001162,2]
[361113813,1747267843621,-400.0,0.0001162,2]
[361113814,1747267843631,-400.0,0.0001162,2]
[361113815,1747267843642,-400.0,0.0001162,2]
[361113816,1747267843652,-698.6,0.0001162,2]
[361113817,1747267843662,-481.91299856,0.0001162,2]
[361113818,1747267843671,-400.0,0.0001162,2]
[361113819,1747267843682,-400.0,0.0001162,2]
[361113820,1747267843692,-664.92,0.0001162,2]
[361113821,1747267843701,-400.0,0.0001162,2]
[361113822,1747267843711,-400.0,0.0001162,2]
[361113823,1747267843722,-400.0,0.0001162,2]
[361113824,1747267843732,-910.14,0.0001162,2]
[361113825,1747267843743,-536.91,0.0001162,2]
[361113826,1747267843754,-400.0,0.0001162,2]
[361113827,1747267843764,-400.0,0.0001162,2]
[361113829,1747267843773,-1608.69,0.0001162,2]
[361113831,1747267843783,-400.0,0.0001162,2]
[361113833,1747267843792,-400.0,0.0001162,2]
[361113835,1747267843802,-400.0,0.0001162,2]
[361113837,1747267843811,-400.0,0.0001162,2]
[361113839,1747267843821,-571.3,0.0001162,2]
[361113841,1747267843831,-1133.32,0.0001162,2]
[361113843,1747267843840,-400.0,0.0001162,2]
[361113845,1747267843850,-400.0,0.0001162,2]
[361113847,1747267843859,-400.0,0.0001162,2]
[361113849,1747267843869,-400.0,0.0001162,2]
[361113852,1747267843878,-400.0,0.0001162,2]
[361113854,1747267843890,-293.9429843,0.0001162,2]
[361113856,1747267843901,-904.36,0.0001162,2]
[361113858,1747267843913,-502.27,0.0001162,2]
[361113860,1747267843922,-431.3,0.0001162,2]
[361113861,1747267843931,-400.0,0.0001162,2]
[361113864,1747267843941,-400.0,0.0001162,2]
[361113866,1747267843950,-400.0,0.0001162,2]
[361113868,1747267843960,-1214.15,0.0001162,2]
[361113869,1747267843969,-1118.64,0.0001162,2]
[361113872,1747267843978,-400.0,0.0001162,2]
[361113873,1747267843988,-3819.5,0.0001162,2]
[361113876,1747267843998,-776.32,0.0001162,2]
[361113877,1747267844007,-400.0,0.0001162,2]
[361113879,1747267844016,-400.0,0.0001162,2]
[361113881,1747267844025,-400.0,0.0001162,2]
[361113883,1747267844034,-439.09,0.0001162,2]
[361113885,1747267844044,-1243.44,0.0001162,2]
[361113887,1747267844054,-400.0,0.0001162,2]
[361113889,1747267844064,-400.0,0.0001162,2]
[361113891,1747267844073,-933.24,0.0001162,2]
[361113893,1747267844082,-400.0,0.0001162,2]
[361113896,1747267844091,-400.0,0.0001162,2]
[361113898,1747267844101,-400.0,0.0001162,2]
[361113899,1747267844110,-780.42,0.0001162,2]
[361113902,1747267844120,-400.0,0.0001162,2]
[361113904,1747267844129,-400.0,0.0001162,2]
[361113905,1747267844139,-400.0,0.0001162,2]
[361113908,1747267844149,-500.0,0.0001162,2]
[361113909,1747267844159,-400.0,0.0001162,2]
[361113911,1747267844168,-540.94,0.0001162,2]
[361113913,1747267844177,-645.51,0.0001162,2]
[361113916,1747267844187,-543.4,0.0001162,2]
[361113917,1747267844196,-400.0,0.0001162,2]
[361113920,1747267844206,-400.0,0.0001162,2]
[361113921,1747267844216,-850.61,0.0001162,2]
[361113923,1747267844225,-452.87,0.0001162,2]
[361113926,1747267844236,-4182.82,0.0001162,2]
[361113928,1747267844245,-400.0,0.0001162,2]
[361113930,1747267844255,-400.0,0.0001162,2]
[361113932,1747267844264,-400.0,0.0001162,2]
[361113934,1747267844273,-1918.33,0.0001162,2]
[361113935,1747267844283,-757.06,0.0001162,2]
[361113937,1747267844292,-400.0,0.0001162,2]
[361113939,1747267844301,-400.0,0.0001162,2]
[361113941,1747267844312,-1655.63,0.0001162,2]
[361113943,1747267844321,-611.33,0.0001162,2]
[361113945,1747267844331,-400.0,0.0001162,2]
[361113947,1747267844341,-400.0,0.0001162,2]
[361113949,1747267844350,-1413.76,0.0001162,2]
[361113951,1747267844359,-2663.04,0.0001162,2]
[361113953,1747267844369,-400.0,0.0001162,2]
[361113955,1747267844378,-548.81,0.0001162,2]
[361113957,1747267844388,-795.1,0.0001162,2]
[361113959,1747267844397,-400.0,0.0001162,2]
[361113961,1747267844407,-1000.0,0.0001162,2]
[361113963,1747267844416,-437.24,0.0001162,2]
[361113965,1747267844426,-572.31,0.0001162,2]
[361113967,1747267844435,-400.0,0.0001162,2]
[361113969,1747267844444,-400.0,0.0001162,2]
[361113971,1747267844453,-400.0,0.0001162,2]
[361113973,1747267844463,-1052.29,0.0001162,2]
[361113975,1747267844472,-400.0,0.0001162,2]
[361113977,1747267844482,-2820.53,0.0001162,2]
[361113980,1747267844491,-400.0,0.0001162,2]
[361113981,1747267844501,-400.0,0.0001162,2]
[361113983,1747267844511,-2143.37,0.0001162,2]
[361113985,1747267844521,-502.95,0.0001162,2]
[361113988,1747267844530,-400.0,0.0001162,2]
[361113989,1747267844539,-4595.27,0.0001162,2]
[361113992,1747267844549,-843.02,0.0001162,2]
[361113993,1747267844559,-400.0,0.0001162,2]
[361113995,1747267844568,-400.0,0.0001162,2]
[361113998,1747267844578,-400.0,0.0001162,2]
[361114000,1747267844588,-400.0,0.0001162,2]
[361114001,1747267844597,-401.02,0.0001162,2]
[361114003,1747267844606,-15580.69,0.0001162,2]
[361114006,1747267844616,-400.0,0.0001162,2]
[361114008,1747267844625,-400.0,0.0001162,2]
[361114010,1747267844634,-400.0,0.0001162,2]
[361114011,1747267844643,-464.73,0.0001162,2]
[361114014,1747267844654,-693.85,0.0001162,2]
[361114015,1747267844663,-400.0,0.0001162,2]
[361114017,1747267844672,-400.0,0.0001162,2]
[361114019,1747267844682,-400.0,0.0001162,2]
[361114021,1747267844692,-5084.84,0.0001162,2]
[361114024,1747267844701,-400.0,0.0001162,2]
[361114025,1747267844711,-400.0,0.0001162,2]
[361114028,1747267844723,-2197.67,0.00011621,2]
[361114030,1747267844732,-400.0,0.00011621,2]
[361114032,1747267844741,-400.0,0.00011621,2]
[361114034,1747267844750,-400.0,0.00011621,2]
[361114036,1747267844759,-8146.39,0.00011621,2]
[361114038,1747267844768,-400.0,0.00011621,2]
[361114039,1747267844777,-1945.27,0.00011621,2]
[361114041,1747267844786,-400.0,0.00011621,2]
[361114043,1747267844796,-709.14,0.00011621,2]
[361114046,1747267844806,-400.0,0.00011621,2]
[361114047,1747267844816,-400.0,0.00011621,2]
[361114050,1747267844826,-1481.39,0.00011621,2]
[361114052,1747267844835,-897.03,0.00011621,2]
[361114053,1747267844844,-522.25,0.00011621,2]
[361114055,1747267844854,-218.315,0.00011703,2]
[361114058,1747267844863,-164.555,0.00011703,2]
[361114059,1747267844872,-150.268,0.00011703,2]
[361114061,1747267844881,-296.486,0.00011703,2]
[361114063,1747267844893,-150.0,0.00011703,2]
[361114065,1747267844902,-289.353,0.00011703,2]
[361114067,1747267844911,-154.875,0.00011703,2]
[361114069,1747267844922,-245.221,0.00011703,2]
[361114071,1747267844931,-200.0,0.00011703,2]
[361114073,1747267844941,-1568.73221816,0.00011703,2]
[361114076,1747267844950,-200.0,0.00011703,2]
[361114077,1747267844959,-150.0,0.00011705,2]